[Event "Early-Titled-Tuesday-Blitz-January-23-2024"]
[Site "Chess.com"]
[Date "2024.01.23"]
[Round "6"]
[White "Duhless"]
[Black "SirStrateg"]
[Result "1/2-1/2"]
[WhiteElo "3111"]
[BlackElo "2649"]
[TimeControl "180+1"]
[EndTime "9:08:45 PST"]
[Termination "Game drawn - insufficient material"]

1. d4 {[%clk 0:02:55.8]} 1... d6 {[%clk 0:02:56.4]} 2. Nf3 {[%clk 0:02:54.6]}
2... Bg4 {[%clk 0:02:55.4]} 3. e4 {[%clk 0:02:54]} 3... Nf6 {[%clk 0:02:53.2]}
4. Nc3 {[%clk 0:02:53.2]} 4... e6 {[%clk 0:02:53.6]} 5. h3 {[%clk 0:02:53.4]}
5... Bh5 {[%clk 0:02:53.7]} 6. g4 {[%clk 0:02:54.1]} 6... Bg6 {[%clk 0:02:54.3]}
7. Qe2 {[%clk 0:02:54.8]} 7... a6 {[%clk 0:02:54.4]} 8. h4 {[%clk 0:02:46.3]}
8... h5 {[%clk 0:02:51.5]} 9. g5 {[%clk 0:02:46.6]} 9... Nfd7 {[%clk 0:02:51.9]}
10. Bh3 {[%clk 0:02:45.6]} 10... Be7 {[%clk 0:02:37]} 11. d5 {[%clk 0:02:32.1]}
11... e5 {[%clk 0:02:28.4]} 12. Nh2 {[%clk 0:02:30]} 12... b5 {[%clk 0:02:17.5]}
13. a3 {[%clk 0:02:22.3]} 13... c5 {[%clk 0:02:05.3]} 14. f4 {[%clk 0:02:01.8]}
14... exf4 {[%clk 0:02:04.9]} 15. Bxf4 {[%clk 0:02:02.7]} 15... O-O {[%clk
0:01:40.9]} 16. O-O {[%clk 0:01:51.7]} 16... b4 {[%clk 0:01:36.9]} 17. Nd1
{[%clk 0:01:49.5]} 17... Re8 {[%clk 0:01:21.2]} 18. Nf2 {[%clk 0:01:31.9]} 18...
Bf8 {[%clk 0:01:20.3]} 19. Nf3 {[%clk 0:01:31.8]} 19... Nb6 {[%clk 0:01:14.7]}
20. Qd3 {[%clk 0:01:06.1]} 20... N8d7 {[%clk 0:01:06.5]} 21. Rae1 {[%clk
0:00:55.8]} 21... bxa3 {[%clk 0:01:02.3]} 22. Qxa3 {[%clk 0:00:52.7]} 22... Nc4
{[%clk 0:00:57.4]} 23. Qc3 {[%clk 0:00:51.7]} 23... Nde5 {[%clk 0:00:50.6]} 24.
Nxe5 {[%clk 0:00:50]} 24... Nxe5 {[%clk 0:00:50.9]} 25. Nd3 {[%clk 0:00:50]}
25... Nxd3 {[%clk 0:00:34.4]} 26. cxd3 {[%clk 0:00:49.1]} 26... Qb6 {[%clk
0:00:29.7]} 27. Kh1 {[%clk 0:00:40.5]} 27... a5 {[%clk 0:00:26]} 28. Bg2 {[%clk
0:00:30.2]} 28... a4 {[%clk 0:00:24.9]} 29. e5 {[%clk 0:00:28]} 29... dxe5
{[%clk 0:00:24.2]} 30. Bxe5 {[%clk 0:00:28.9]} 30... Rad8 {[%clk 0:00:18]} 31.
d6 {[%clk 0:00:23.2]} 31... Rxe5 {[%clk 0:00:14.8]} 32. Qxe5 {[%clk 0:00:22.6]}
32... Bxd6 {[%clk 0:00:15]} 33. Qc3 {[%clk 0:00:18.8]} 33... Bg3 {[%clk
0:00:14.9]} 34. Re7 {[%clk 0:00:17.5]} 34... Bxh4 {[%clk 0:00:13.5]} 35. Qe5
{[%clk 0:00:17.6]} 35... Qb8 {[%clk 0:00:08.8]} 36. Qe3 {[%clk 0:00:10]} 36...
Qg3 {[%clk 0:00:07.8]} 37. Qxg3 {[%clk 0:00:07]} 37... Bxg3 {[%clk 0:00:08.7]}
38. Ra7 {[%clk 0:00:05.4]} 38... Bh4 {[%clk 0:00:08.7]} 39. Rxa4 {[%clk
0:00:05.1]} 39... Bxg5 {[%clk 0:00:09.1]} 40. Ra5 {[%clk 0:00:04.9]} 40... Be3
{[%clk 0:00:09.3]} 41. Re1 {[%clk 0:00:04.5]} 41... Bd4 {[%clk 0:00:09.7]} 42.
Be4 {[%clk 0:00:04.8]} 42... Bxe4+ {[%clk 0:00:09.4]} 43. Rxe4 {[%clk
0:00:05.7]} 43... Rb8 {[%clk 0:00:09.2]} 44. Ra7 {[%clk 0:00:04.6]} 44... Rxb2
{[%clk 0:00:09]} 45. Re8+ {[%clk 0:00:04.6]} 45... Kh7 {[%clk 0:00:09.5]} 46.
Rxf7 {[%clk 0:00:05.3]} 46... Rf2 {[%clk 0:00:08.5]} 47. Rxf2 {[%clk 0:00:04.4]}
47... Bxf2 {[%clk 0:00:08.6]} 48. Kg2 {[%clk 0:00:05.3]} 48... Bd4 {[%clk
0:00:08.9]} 49. Re6 {[%clk 0:00:06.1]} 49... g6 {[%clk 0:00:08.9]} 50. Kf3
{[%clk 0:00:06.4]} 50... Kh6 {[%clk 0:00:08.9]} 51. Kf4 {[%clk 0:00:07]} 51...
Bc3 {[%clk 0:00:08.4]} 52. Rc6 {[%clk 0:00:06.9]} 52... Bd4 {[%clk 0:00:08.9]}
53. Rc8 {[%clk 0:00:07.2]} 53... Bg1 {[%clk 0:00:08.8]} 54. Re8 {[%clk
0:00:06.1]} 54... Bd4 {[%clk 0:00:08.9]} 55. Re2 {[%clk 0:00:06.2]} 55... Bg1
{[%clk 0:00:09]} 56. Rg2 {[%clk 0:00:06.6]} 56... Bd4 {[%clk 0:00:09.3]} 57. Ke4
{[%clk 0:00:07.4]} 57... Bc3 {[%clk 0:00:08.6]} 58. Kd5 {[%clk 0:00:07.5]} 58...
Bd4 {[%clk 0:00:09]} 59. Ke6 {[%clk 0:00:08.2]} 59... h4 {[%clk 0:00:09.2]} 60.
Kd5 {[%clk 0:00:06.2]} 60... Kh5 {[%clk 0:00:09.3]} 61. Ke4 {[%clk 0:00:06.6]}
61... g5 {[%clk 0:00:07.9]} 62. Kf5 {[%clk 0:00:05.7]} 62... Be3 {[%clk
0:00:08.5]} 63. Re2 {[%clk 0:00:05.7]} 63... Bf4 {[%clk 0:00:08.8]} 64. Re8
{[%clk 0:00:05.6]} 64... Kh6 {[%clk 0:00:07.5]} 65. Rc8 {[%clk 0:00:05.4]} 65...
Kg7 {[%clk 0:00:06.3]} 66. Rxc5 {[%clk 0:00:04.3]} 66... h3 {[%clk 0:00:06.9]}
67. Rb5 {[%clk 0:00:02.7]} 67... h2 {[%clk 0:00:07.1]} 68. Rb1 {[%clk
0:00:03.5]} 68... Kf7 {[%clk 0:00:06.3]} 69. d4 {[%clk 0:00:02.9]} 69... Ke7
{[%clk 0:00:06.6]} 70. Ke4 {[%clk 0:00:03.2]} 70... Kd6 {[%clk 0:00:06]} 71.
Rb6+ {[%clk 0:00:03.4]} 71... Kc7 {[%clk 0:00:06.3]} 72. Rh6 {[%clk 0:00:04.1]}
72... Kd7 {[%clk 0:00:02.2]} 73. Kf5 {[%clk 0:00:04.1]} 73... Ke7 {[%clk
0:00:02.2]} 74. Ke4 {[%clk 0:00:03.7]} 74... Kd7 {[%clk 0:00:02.6]} 75. Kd5
{[%clk 0:00:03.9]} 75... Ke7 {[%clk 0:00:03]} 76. Rh7+ {[%clk 0:00:04.4]} 76...
Kf6 {[%clk 0:00:03.6]} 77. Ke4 {[%clk 0:00:04.9]} 77... Kg6 {[%clk 0:00:04.1]}
78. Rh8 {[%clk 0:00:05.1]} 78... Kg7 {[%clk 0:00:04.6]} 79. Rh5 {[%clk
0:00:04.6]} 79... Kg6 {[%clk 0:00:05.1]} 80. Rh8 {[%clk 0:00:04.1]} 80... Kg7
{[%clk 0:00:05.7]} 81. Rh3 {[%clk 0:00:02.5]} 81... g4 {[%clk 0:00:05.3]} 82.
Rh4 {[%clk 0:00:02.4]} 82... g3 {[%clk 0:00:05.7]} 83. Kxf4 {[%clk 0:00:01.8]}
83... g2 {[%clk 0:00:06.2]} 84. Rg4+ {[%clk 0:00:02.3]} 84... Kf6 {[%clk
0:00:06.7]} 85. Rxg2 {[%clk 0:00:02.9]} 85... h1=Q {[%clk 0:00:07.4]} 86. Rf2
{[%clk 0:00:03.2]} 86... Qh4+ {[%clk 0:00:07.7]} 87. Ke3+ {[%clk 0:00:03.5]}
87... Ke6 {[%clk 0:00:07.9]} 88. Rf4 {[%clk 0:00:03.6]} 88... Qg3+ {[%clk
0:00:08.2]} 89. Ke4 {[%clk 0:00:04]} 89... Qe1+ {[%clk 0:00:07.5]} 90. Kf3
{[%clk 0:00:04.1]} 90... Qd1+ {[%clk 0:00:07.2]} 91. Kg3 {[%clk 0:00:03.2]}
91... Qd3+ {[%clk 0:00:07.1]} 92. Kg4 {[%clk 0:00:03.5]} 92... Kd5 {[%clk
0:00:07.3]} 93. Kg5 {[%clk 0:00:03.7]} 93... Qe3 {[%clk 0:00:06.7]} 94. Kf5
{[%clk 0:00:04.1]} 94... Qxd4 {[%clk 0:00:06.5]} 95. Rxd4+ {[%clk 0:00:04]}
95... Kxd4 {[%clk 0:00:07.4]} 1/2-1/2

[Event "Early-Titled-Tuesday-Blitz-January-23-2024"]
[Site "Chess.com"]
[Date "2024.01.23"]
[Round "6"]
[White "Reality-Stone"]
[Black "sokidze"]
[Result "0-1"]
[WhiteElo "2627"]
[BlackElo "2841"]
[TimeControl "180+1"]
[EndTime "9:10:03 PST"]
[Termination "sokidze won by resignation"]

1. Nf3 {[%clk 0:03:00.9]} 1... d5 {[%clk 0:02:57.4]} 2. d4 {[%clk 0:03:00.3]}
2... Nf6 {[%clk 0:02:57.1]} 3. c4 {[%clk 0:03:00.3]} 3... e6 {[%clk 0:02:56.9]}
4. g3 {[%clk 0:02:57.2]} 4... Be7 {[%clk 0:02:55.9]} 5. Bg2 {[%clk 0:02:56.9]}
5... O-O {[%clk 0:02:56.6]} 6. O-O {[%clk 0:02:57]} 6... c6 {[%clk 0:02:57.3]}
7. Nc3 {[%clk 0:02:42.2]} 7... a5 {[%clk 0:02:56.6]} 8. Qd3 {[%clk 0:02:36.7]}
8... b6 {[%clk 0:02:53.1]} 9. b3 {[%clk 0:02:36.2]} 9... Ba6 {[%clk 0:02:49.7]}
10. Rd1 {[%clk 0:02:32.1]} 10... b5 {[%clk 0:02:26.4]} 11. cxb5 {[%clk
0:02:27.9]} 11... cxb5 {[%clk 0:02:26.6]} 12. Nxb5 {[%clk 0:02:19.5]} 12... Qb6
{[%clk 0:02:26.5]} 13. a4 {[%clk 0:02:18.5]} 13... Nc6 {[%clk 0:02:26.4]} 14.
Bd2 {[%clk 0:02:07.3]} 14... Ne4 {[%clk 0:02:23.5]} 15. Be1 {[%clk 0:01:54.8]}
15... Na7 {[%clk 0:02:10.7]} 16. Ne5 {[%clk 0:01:44.3]} 16... Nxb5 {[%clk
0:02:05.1]} 17. axb5 {[%clk 0:01:23.3]} 17... Bxb5 {[%clk 0:02:04.4]} 18. Qe3
{[%clk 0:01:14.1]} 18... Nd6 {[%clk 0:01:56.7]} 19. Qd2 {[%clk 0:01:02.2]} 19...
Rfb8 {[%clk 0:01:36.2]} 20. e3 {[%clk 0:00:45]} 20... Bd8 {[%clk 0:00:57.3]} 21.
Rdc1 {[%clk 0:00:39.9]} 21... Be8 {[%clk 0:00:51.6]} 22. Rc3 {[%clk 0:00:24]}
22... f6 {[%clk 0:00:18.6]} 23. Nd3 {[%clk 0:00:21.1]} 23... Ne4 {[%clk
0:00:18]} 24. Bxe4 {[%clk 0:00:20.6]} 24... dxe4 {[%clk 0:00:18.9]} 25. Nc5
{[%clk 0:00:19.9]} 25... f5 {[%clk 0:00:19.4]} 26. d5 {[%clk 0:00:18.2]} 26...
Bf6 {[%clk 0:00:09.6]} 27. Nxe6 {[%clk 0:00:18.1]} 27... Bxc3 {[%clk 0:00:05.9]}
28. Qxc3 {[%clk 0:00:19]} 28... Qb7 {[%clk 0:00:06.5]} 29. Qe5 {[%clk
0:00:17.8]} 29... Qf7 {[%clk 0:00:06]} 30. Rc1 {[%clk 0:00:15.1]} 30... Rc8
{[%clk 0:00:05.9]} 31. Rxc8 {[%clk 0:00:13.4]} 31... Rxc8 {[%clk 0:00:06.8]} 32.
Bxa5 {[%clk 0:00:13.9]} 32... Bd7 {[%clk 0:00:05.5]} 33. Bc3 {[%clk 0:00:13.1]}
33... Re8 {[%clk 0:00:04]} 34. Qxg7+ {[%clk 0:00:10]} 34... Qxg7 {[%clk
0:00:04.4]} 35. Nxg7 {[%clk 0:00:10.9]} 35... Rc8 {[%clk 0:00:04.3]} 36. Bd4
{[%clk 0:00:09.8]} 36... Rc1+ {[%clk 0:00:03]} 37. Kg2 {[%clk 0:00:10]} 37...
Rb1 {[%clk 0:00:02.2]} 38. Nh5 {[%clk 0:00:09.2]} 38... Bb5 {[%clk 0:00:02.5]}
39. g4 {[%clk 0:00:07.9]} 39... fxg4 {[%clk 0:00:02.3]} 40. Kg3 {[%clk
0:00:07.9]} 40... Rxb3 {[%clk 0:00:02.1]} 41. Nf6+ {[%clk 0:00:07.4]} 41... Kf7
{[%clk 0:00:02.5]} 42. Nxe4 {[%clk 0:00:07.8]} 42... h5 {[%clk 0:00:01.9]} 43.
Nd6+ {[%clk 0:00:06.3]} 43... Kg6 {[%clk 0:00:02.4]} 44. Ne4 {[%clk 0:00:04.5]}
44... Rb1 {[%clk 0:00:02.5]} 45. Kf4 {[%clk 0:00:03.8]} 45... Bd3 {[%clk
0:00:02.6]} 46. Ng3 {[%clk 0:00:03.9]} 46... h4 {[%clk 0:00:02.2]} 47. Ne4
{[%clk 0:00:02.2]} 47... Bxe4 {[%clk 0:00:02.8]} 48. Kxe4 {[%clk 0:00:02.5]}
48... Rh1 {[%clk 0:00:02.1]} 49. Be5 {[%clk 0:00:02.3]} 49... Rd1 {[%clk
0:00:01.7]} 50. d6 {[%clk 0:00:01.4]} 50... Kg5 {[%clk 0:00:01.5]} 51. Bf4+
{[%clk 0:00:01.7]} 51... Kf6 {[%clk 0:00:01.8]} 52. Be5+ {[%clk 0:00:02.5]}
52... Ke6 {[%clk 0:00:02.4]} 53. Kf4 {[%clk 0:00:03.2]} 53... Rh1 {[%clk
0:00:02.2]} 54. d7 {[%clk 0:00:02.1]} 54... Kxd7 {[%clk 0:00:02.3]} 55. Kxg4
{[%clk 0:00:02.6]} 55... Ke6 {[%clk 0:00:02.8]} 56. Bf4 {[%clk 0:00:02.9]} 56...
Rg1+ {[%clk 0:00:03.1]} 57. Kxh4 {[%clk 0:00:03.3]} 57... Kf5 {[%clk 0:00:03.8]}
58. Bg3 {[%clk 0:00:03.9]} 58... Rf1 {[%clk 0:00:03.8]} 59. Kh3 {[%clk
0:00:04.3]} 59... Ra1 {[%clk 0:00:03.5]} 60. Kg2 {[%clk 0:00:05.2]} 60... Ra3
{[%clk 0:00:03.4]} 61. h3 {[%clk 0:00:06.1]} 61... Ra2 {[%clk 0:00:03.4]} 62.
Kf3 {[%clk 0:00:07]} 62... Ra3 {[%clk 0:00:03.2]} 63. h4 {[%clk 0:00:07.9]}
63... Rb3 {[%clk 0:00:03.3]} 64. Bf4 {[%clk 0:00:08.8]} 64... Rb1 {[%clk
0:00:02.2]} 65. h5 {[%clk 0:00:08.9]} 65... Rh1 {[%clk 0:00:01.9]} 66. e4+
{[%clk 0:00:09.4]} 66... Kf6 {[%clk 0:00:02]} 67. h6 {[%clk 0:00:10.3]} 67...
Kg6 {[%clk 0:00:02.2]} 68. Kg4 {[%clk 0:00:10.4]} 68... Re1 {[%clk 0:00:02.5]}
69. f3 {[%clk 0:00:10.5]} 69... Rg1+ {[%clk 0:00:02.5]} 70. Kh4 {[%clk
0:00:10.4]} 70... Rh1+ {[%clk 0:00:02.8]} 71. Kg3 {[%clk 0:00:10.8]} 71... Rg1+
{[%clk 0:00:03.4]} 72. Kf2 {[%clk 0:00:11.2]} 72... Rb1 {[%clk 0:00:03.5]} 73.
Be3 {[%clk 0:00:10.3]} 73... Rb3 {[%clk 0:00:03.1]} 74. f4 {[%clk 0:00:09.3]}
74... Kxh6 {[%clk 0:00:03.1]} 75. f5+ {[%clk 0:00:08.9]} 75... Kg7 {[%clk
0:00:03.6]} 76. Kf3 {[%clk 0:00:08.2]} 76... Rb5 {[%clk 0:00:02.1]} 77. Kf4
{[%clk 0:00:08.2]} 77... Kf7 {[%clk 0:00:01.8]} 78. e5 {[%clk 0:00:07.7]} 78...
Rb4+ {[%clk 0:00:02.1]} 79. Kg5 {[%clk 0:00:08.2]} 79... Re4 {[%clk 0:00:02.6]}
80. Bf4 {[%clk 0:00:07.7]} 80... Re1 {[%clk 0:00:02.5]} 81. Bg3 {[%clk
0:00:07.4]} 81... Re3 {[%clk 0:00:02.4]} 82. Kf4 {[%clk 0:00:07.6]} 82... Re2
{[%clk 0:00:03]} 83. Kf3 {[%clk 0:00:07.5]} 83... Ra2 {[%clk 0:00:02.2]} 84. e6+
{[%clk 0:00:06.4]} 84... Kf6 {[%clk 0:00:02.5]} 85. Kg4 {[%clk 0:00:05.9]} 85...
Ra4+ {[%clk 0:00:02.9]} 86. Bf4 {[%clk 0:00:05.4]} 86... Re4 {[%clk 0:00:03.5]}
87. Kf3 {[%clk 0:00:04.5]} 87... Kxf5 {[%clk 0:00:03.9]} 88. Be3 {[%clk
0:00:05]} 88... Rxe6 {[%clk 0:00:04.1]} 89. Bf4 {[%clk 0:00:05.1]} 89... Re4
{[%clk 0:00:04.3]} 90. Be3 {[%clk 0:00:05.4]} 90... Ra4 {[%clk 0:00:04.3]} 91.
Bf2 {[%clk 0:00:05.1]} 91... Ra3+ {[%clk 0:00:03.9]} 92. Kg2 {[%clk 0:00:05.6]}
92... Kf4 {[%clk 0:00:04.2]} 93. Kh1 {[%clk 0:00:05.2]} 93... Kf3 {[%clk
0:00:04.8]} 94. Bg1 {[%clk 0:00:05.7]} 94... Ra1 {[%clk 0:00:05.1]} 95. Kh2
{[%clk 0:00:06]} 95... Ra2+ {[%clk 0:00:05.4]} 96. Kh1 {[%clk 0:00:06.4]} 96...
Kg3 {[%clk 0:00:06]} 97. Bd4 {[%clk 0:00:06]} 97... Re2 {[%clk 0:00:04.4]} 98.
Bg1 {[%clk 0:00:05.3]} 98... Rd2 {[%clk 0:00:04]} 99. Ba7 {[%clk 0:00:04.6]}
99... Rd1+ {[%clk 0:00:03.2]} 100. Bg1 {[%clk 0:00:04.1]} 100... Kf3 {[%clk
0:00:04]} 101. Kh2 {[%clk 0:00:04]} 101... Rd5 {[%clk 0:00:04.6]} 102. Ba7
{[%clk 0:00:02.9]} 102... Rh5+ {[%clk 0:00:04]} 103. Kg1 {[%clk 0:00:03.4]}
103... Rh7 {[%clk 0:00:04.3]} 104. Bb6 {[%clk 0:00:03]} 104... Rh6 {[%clk
0:00:04.8]} 105. Bc5 {[%clk 0:00:02.4]} 105... Rc6 {[%clk 0:00:05.4]} 106. Ba7
{[%clk 0:00:02.7]} 106... Kg3 {[%clk 0:00:05.8]} 107. Bb8+ {[%clk 0:00:01.4]}
107... Kh3 {[%clk 0:00:05.8]} 108. Ba7 {[%clk 0:00:02.3]} 108... Rc2 {[%clk
0:00:05.8]} 109. Bb6 {[%clk 0:00:01.9]} 109... Kg3 {[%clk 0:00:05.8]} 110. Kh1
{[%clk 0:00:01.5]} 110... Rc6 {[%clk 0:00:04]} 111. Bg1 {[%clk 0:00:02.4]}
111... Rh6+ {[%clk 0:00:03.3]} 112. Bh2+ {[%clk 0:00:02.7]} 112... Rxh2+ {[%clk
0:00:04]} 0-1

[Event "Early-Titled-Tuesday-Blitz-January-23-2024"]
[Site "Chess.com"]
[Date "2024.01.23"]
[Round "7"]
[White "Nekoo04"]
[Black "JeFumeDesClopes"]
[Result "1-0"]
[WhiteElo "2383"]
[BlackElo "2530"]
[TimeControl "180+1"]
[EndTime "9:12:26 PST"]
[Termination "Nekoo04 won by resignation"]

1. d4 {[%clk 0:03:00.9]} 1... g6 {[%clk 0:02:59.2]} 2. c4 {[%clk 0:03:00.8]}
2... Bg7 {[%clk 0:02:59.5]} 3. Nc3 {[%clk 0:03:01.7]} 3... d6 {[%clk 0:02:59.8]}
4. e4 {[%clk 0:03:01.5]} 4... Nd7 {[%clk 0:02:57.4]} 5. Nf3 {[%clk 0:03:00.5]}
5... c5 {[%clk 0:02:57.8]} 6. d5 {[%clk 0:02:59.4]} 6... Ngf6 {[%clk 0:02:58]}
7. Be2 {[%clk 0:02:58.2]} 7... O-O {[%clk 0:02:58.3]} 8. O-O {[%clk 0:02:58]}
8... a6 {[%clk 0:02:55.7]} 9. Bg5 {[%clk 0:02:56.3]} 9... b5 {[%clk 0:02:55.7]}
10. cxb5 {[%clk 0:02:54.5]} 10... axb5 {[%clk 0:02:56.4]} 11. Bxb5 {[%clk
0:02:55.2]} 11... Ba6 {[%clk 0:02:55.9]} 12. Re1 {[%clk 0:02:48.1]} 12... Bxb5
{[%clk 0:02:52.4]} 13. Nxb5 {[%clk 0:02:48.1]} 13... Qa5 {[%clk 0:02:53]} 14. a4
{[%clk 0:02:29.8]} 14... Qb4 {[%clk 0:02:50.9]} 15. Bd2 {[%clk 0:02:25.7]} 15...
Qc4 {[%clk 0:02:40.4]} 16. b3 {[%clk 0:02:15.7]} 1-0

[Event "Early-Titled-Tuesday-Blitz-January-23-2024"]
[Site "Chess.com"]
[Date "2024.01.23"]
[Round "7"]
[White "mertfelin"]
[Black "DeArron_Fox"]
[Result "0-1"]
[WhiteElo "2274"]
[BlackElo "2447"]
[TimeControl "180+1"]
[EndTime "9:12:26 PST"]
[Termination "DeArron_Fox won by resignation"]

1. e4 {[%clk 0:03:00.1]} 1... c5 {[%clk 0:02:57.3]} 2. Nf3 {[%clk 0:03:00.4]}
2... e6 {[%clk 0:02:50.8]} 3. b3 {[%clk 0:03:00.5]} 3... d6 {[%clk 0:02:49.2]}
4. Bb2 {[%clk 0:03:00.7]} 4... Nf6 {[%clk 0:02:49.9]} 5. Qe2 {[%clk 0:02:54.7]}
5... Be7 {[%clk 0:02:45.1]} 6. d3 {[%clk 0:02:55]} 6... O-O {[%clk 0:02:44.1]}
7. Nbd2 {[%clk 0:02:55.3]} 7... Nc6 {[%clk 0:02:40.5]} 8. g3 {[%clk 0:02:51.6]}
8... b5 {[%clk 0:02:38.8]} 9. Bg2 {[%clk 0:02:51.1]} 9... Bb7 {[%clk 0:02:39.4]}
10. O-O {[%clk 0:02:50.5]} 10... a5 {[%clk 0:02:37.8]} 11. h4 {[%clk 0:02:40.7]}
11... a4 {[%clk 0:02:34.7]} 12. Rfd1 {[%clk 0:02:35.5]} 12... Nd7 {[%clk
0:02:28.2]} 13. Nf1 {[%clk 0:02:22.7]} 13... Bf6 {[%clk 0:02:25.9]} 14. Bxf6
{[%clk 0:02:20.8]} 14... Qxf6 {[%clk 0:02:26.8]} 15. Ne3 {[%clk 0:02:19.3]}
15... axb3 {[%clk 0:02:21.7]} 16. axb3 {[%clk 0:02:19.3]} 16... Rxa1 {[%clk
0:02:21.3]} 0-1

[Event "Early-Titled-Tuesday-Blitz-January-23-2024"]
[Site "Chess.com"]
[Date "2024.01.23"]
[Round "7"]
[White "jefferyx"]
[Black "bubeliang"]
[Result "1-0"]
[WhiteElo "3005"]
[BlackElo "2795"]
[TimeControl "180+1"]
[EndTime "9:13:44 PST"]
[Termination "jefferyx won by resignation"]

1. d4 {[%clk 0:03:00.9]} 1... b6 {[%clk 0:02:55.1]} 2. e4 {[%clk 0:03:00.4]}
2... Bb7 {[%clk 0:02:54.6]} 3. Bd3 {[%clk 0:03:01]} 3... g6 {[%clk 0:02:53.9]}
4. h4 {[%clk 0:02:58.7]} 4... h5 {[%clk 0:02:52.8]} 5. a4 {[%clk 0:02:58.4]}
5... a5 {[%clk 0:02:51.8]} 6. Nh3 {[%clk 0:02:57.2]} 6... Bg7 {[%clk 0:02:51.8]}
7. Be3 {[%clk 0:02:56.9]} 7... e6 {[%clk 0:02:51]} 8. Ng5 {[%clk 0:02:56.6]}
8... d5 {[%clk 0:02:44.8]} 9. e5 {[%clk 0:02:54.3]} 9... Nh6 {[%clk 0:02:43.6]}
10. c3 {[%clk 0:02:53.2]} 10... Nd7 {[%clk 0:02:40.1]} 11. Nd2 {[%clk
0:02:53.2]} 11... c5 {[%clk 0:02:37.6]} 12. Ndf3 {[%clk 0:02:20.7]} 12... Qc7
{[%clk 0:02:28.3]} 13. Bxg6 {[%clk 0:02:17.5]} 13... Nf8 {[%clk 0:02:17]} 14.
Bxh5 {[%clk 0:02:12.7]} 14... c4 {[%clk 0:02:06.9]} 15. Rb1 {[%clk 0:01:58.6]}
15... O-O-O {[%clk 0:02:03.7]} 16. b3 {[%clk 0:01:58.4]} 16... Ba6 {[%clk
0:02:01.8]} 17. b4 {[%clk 0:01:57.1]} 17... Ng6 {[%clk 0:01:55.5]} 18. Bxg6
{[%clk 0:01:56.2]} 18... fxg6 {[%clk 0:01:51.1]} 19. Nxe6 {[%clk 0:01:56.8]}
19... Qf7 {[%clk 0:01:50.8]} 20. Nxd8 {[%clk 0:01:56.7]} 20... Rxd8 {[%clk
0:01:51.7]} 21. bxa5 {[%clk 0:01:56.8]} 21... bxa5 {[%clk 0:01:52.6]} 22. Rb6
{[%clk 0:01:56.1]} 22... Bb7 {[%clk 0:01:52.5]} 23. Qb1 {[%clk 0:01:54.8]} 23...
Nf5 {[%clk 0:01:53.1]} 24. Ng5 {[%clk 0:01:54.8]} 24... Qc7 {[%clk 0:01:52.8]}
25. Ne6 {[%clk 0:01:54.1]} 25... Qd7 {[%clk 0:01:52.6]} 26. Nxd8 {[%clk
0:01:54.1]} 26... Qxd8 {[%clk 0:01:53.5]} 27. Rxb7 {[%clk 0:01:53.7]} 27... Qc7
{[%clk 0:01:54.4]} 28. Rxc7+ {[%clk 0:01:54]} 28... Kxc7 {[%clk 0:01:55.3]} 29.
Bf4 {[%clk 0:01:54.3]} 1-0

[Event "Early-Titled-Tuesday-Blitz-January-23-2024"]
[Site "Chess.com"]
[Date "2024.01.23"]
[Round "7"]
[White "Heinza9"]
[Black "Zheenbekov86"]
[Result "1-0"]
[WhiteElo "2324"]
[BlackElo "2483"]
[TimeControl "180+1"]
[EndTime "9:13:49 PST"]
[Termination "Heinza9 won by resignation"]

1. e4 {[%clk 0:03:00.9]} 1... c6 {[%clk 0:02:59.1]} 2. d4 {[%clk 0:03:00.3]}
2... d5 {[%clk 0:02:59.1]} 3. exd5 {[%clk 0:03:00.7]} 3... cxd5 {[%clk
0:02:58.8]} 4. c4 {[%clk 0:03:01]} 4... Nf6 {[%clk 0:02:58.1]} 5. Nc3 {[%clk
0:03:01.2]} 5... Nc6 {[%clk 0:02:57.8]} 6. Bg5 {[%clk 0:03:01.2]} 6... e6 {[%clk
0:02:28.5]} 7. Nf3 {[%clk 0:03:00]} 7... Be7 {[%clk 0:02:27.8]} 8. c5 {[%clk
0:03:00.3]} 8... O-O {[%clk 0:02:27.4]} 9. Bb5 {[%clk 0:02:59.7]} 9... h6 {[%clk
0:02:22.3]} 10. Be3 {[%clk 0:02:51.4]} 10... Bd7 {[%clk 0:02:05]} 11. O-O {[%clk
0:02:48.9]} 11... b6 {[%clk 0:02:04.2]} 12. Bxc6 {[%clk 0:02:47.4]} 12... Bxc6
{[%clk 0:02:04]} 13. Ne5 {[%clk 0:02:47.5]} 13... Bb7 {[%clk 0:01:48.5]} 14. b4
{[%clk 0:02:45.7]} 14... bxc5 {[%clk 0:01:48]} 15. bxc5 {[%clk 0:02:45.3]} 15...
Ba6 {[%clk 0:01:47.9]} 16. Re1 {[%clk 0:02:43.9]} 16... Qa5 {[%clk 0:01:36.9]}
17. Bd2 {[%clk 0:02:40.9]} 17... Qa3 {[%clk 0:01:31.1]} 18. Nc6 {[%clk
0:02:36.7]} 18... Rfe8 {[%clk 0:01:24.8]} 19. Rb1 {[%clk 0:02:32.3]} 19... Bf8
{[%clk 0:01:22.6]} 20. Rb3 {[%clk 0:02:29.2]} 1-0

[Event "Early-Titled-Tuesday-Blitz-January-23-2024"]
[Site "Chess.com"]
[Date "2024.01.23"]
[Round "7"]
[White "ImportedItalianMaple"]
[Black "ScofieldMichael01"]
[Result "0-1"]
[WhiteElo "2461"]
[BlackElo "2614"]
[TimeControl "180+1"]
[EndTime "9:14:27 PST"]
[Termination "ScofieldMichael01 won by resignation"]

1. e4 {[%clk 0:03:00.9]} 1... d5 {[%clk 0:03:00.6]} 2. exd5 {[%clk 0:03:00.6]}
2... Nf6 {[%clk 0:03:01.1]} 3. d4 {[%clk 0:03:00.2]} 3... Bg4 {[%clk 0:03:01.4]}
4. f3 {[%clk 0:02:59.7]} 4... Bh5 {[%clk 0:03:01.3]} 5. c4 {[%clk 0:02:58.1]}
5... e6 {[%clk 0:03:01.2]} 6. dxe6 {[%clk 0:02:54.1]} 6... Nc6 {[%clk
0:03:01.2]} 7. Be3 {[%clk 0:02:48.5]} 7... Bb4+ {[%clk 0:03:00.3]} 8. Nc3 {[%clk
0:02:48.1]} 8... O-O {[%clk 0:02:58]} 9. d5 {[%clk 0:02:34.1]} 9... Qe7 {[%clk
0:02:34.4]} 10. dxc6 {[%clk 0:02:18.5]} 10... Qxe6 {[%clk 0:02:33.2]} 11. Kf2
{[%clk 0:02:17.7]} 11... Rfe8 {[%clk 0:02:23.5]} 12. Qc1 {[%clk 0:02:08.2]}
12... Rad8 {[%clk 0:02:01.9]} 13. Nh3 {[%clk 0:02:01.9]} 13... Qf5 {[%clk
0:01:53.9]} 14. Nf4 {[%clk 0:01:54.1]} 14... Rxe3 {[%clk 0:01:43.4]} 15. Kxe3
{[%clk 0:01:38.7]} 15... Bc5+ {[%clk 0:01:21.5]} 16. Ke2 {[%clk 0:01:36.5]}
16... Qe5+ {[%clk 0:01:21.6]} 17. Ne4 {[%clk 0:01:24]} 17... Qxe4+ {[%clk
0:01:21.2]} 0-1